fUST/lending_fUST_20241215
["ID","MTS","AMOUNT","RATE_DAILY","PERIOD"]
[345395664,1734233440051,-10000.0,0.000284,7]
[345395666,1734233440061,-156.56,0.000284,31]
[345395668,1734233440071,-156.56,0.000284,31]
[345395669,1734233440081,-32297.30145477,0.000284,3]
[345395672,1734233440091,-719.92945215,0.000284,2]
[345395674,1734233440100,-500.0,0.00028473,5]
[345395676,1734233440110,-501.66834758,0.00028473,5]
[345395678,1734233440122,-500.0,0.00028492,7]
[345395680,1734233440133,-625.5520707,0.00028493,7]
[345395683,1734233440145,-500.0,0.00028493,7]
[345395685,1734233440156,-1247.32,0.00028493,7]
[345395687,1734233440166,-865.62,0.00028493,7]
[345395689,1734233440176,-521.39,0.00028493,7]
[345395691,1734233440185,-563.67,0.00028493,7]
[345395692,1734233440195,-846.77,0.00028493,7]
[345395695,1734233440204,-577.1,0.00028493,7]
[345395697,1734233440215,-33822.46608292,0.000285,2]
[345395699,1734233440235,-83508.44586549,0.000285,2]
[345395701,1734233440245,-2014.74712422,0.000285,2]
[345395703,1734233440255,-1070557.78998608,0.000285,2]
[345398028,1734234638813,-466.0,0.00022,2]
[345398030,1734234638823,-466.0,0.00022192,2]
[345398032,1734234638832,-466.0,0.00023014,2]
[345398034,1734234638842,-467.0,0.00024164,2]
[345398036,1734234638851,-466.0,0.00025775,2]
[345398038,1734234638860,-4114.9318924,0.00025854,2]
[345398040,1734234638870,-300.0,0.00025999,2]
[345398041,1734234638880,-300.0,0.00025999,2]
[345398042,1734234638890,-20047.4877752,0.00026,4]
[345398043,1734234638900,-220.174752,0.0002606,2]
[345398044,1734234638912,-366.671,0.0002707,2]
[345398045,1734234638922,-5000.0,0.00027173,7]
[345398046,1734234638944,-1033.97384209,0.00027286,2]
[345398047,1734234638954,-466.0,0.00027386,2]
[345398048,1734234638965,-500.0,0.00027397,7]
[345398049,1734234638975,-505.95785503,0.00027397,7]
[345398050,1734234638986,-500.0,0.00027397,7]
[345398051,1734234638995,-500.0,0.00027397,7]
[345398052,1734234639005,-500.0,0.00027397,7]
[345398053,1734234639015,-500.0,0.00027397,7]
[345398054,1734234639026,-500.0,0.00027397,7]
[345398055,1734234639036,-500.0,0.00027397,7]
[345398056,1734234639047,-500.0,0.00027397,7]
[345398057,1734234639056,-500.0,0.00027397,7]
[345398059,1734234639066,-500.0,0.00027397,7]
[345398060,1734234639076,-500.0,0.00027397,7]
[345398062,1734234639086,-500.0,0.00027397,7]
[345398065,1734234639098,-500.0,0.00027397,7]
[345398067,1734234639108,-500.0,0.00027397,7]
[345398069,1734234639117,-500.0,0.00027397,7]
[345398071,1734234639128,-502.62643404,0.00027397,7]
[345398073,1734234639138,-500.0,0.00027397,7]
[345398075,1734234639148,-500.0,0.00027397,7]
[345398077,1734234639159,-500.0,0.00027397,7]
[345398079,1734234639169,-542.6,0.00027397,7]
[345398081,1734234639179,-500.0,0.00027397,7]
[345398083,1734234639190,-500.0,0.00027397,7]
[345398085,1734234639200,-500.0,0.00027397,7]
[345398087,1734234639210,-503.02843008,0.00027397,7]
[345398089,1734234639220,-500.0,0.00027397,7]
[345398091,1734234639230,-500.0,0.00027397,7]
[345398093,1734234639240,-507.04341084,0.00027397,7]
[345398095,1734234639250,-500.0,0.00027397,7]
[345398097,1734234639260,-500.0,0.00027397,7]
[345398099,1734234639270,-503.58679874,0.00027397,7]
[345398101,1734234639279,-500.0,0.00027397,7]
[345398103,1734234639289,-503.66890864,0.00027397,7]
[345398105,1734234639299,-527.05011951,0.00027397,7]
[345398107,1734234639309,-500.0,0.00027397,7]
[345398109,1734234639319,-500.0,0.00027397,7]
[345398111,1734234639330,-500.0,0.00027397,7]
[345398113,1734234639340,-500.0,0.00027397,7]
[345398115,1734234639350,-500.0,0.00027397,7]
[345398117,1734234639361,-500.0,0.00027397,7]
[345398119,1734234639371,-502.10018358,0.00027397,7]
[345398122,1734234639382,-500.0,0.00027397,7]
[345398124,1734234639392,-501.7144378,0.00027397,7]
[345398126,1734234639402,-500.0,0.00027397,7]
[345398128,1734234639412,-500.0,0.00027397,7]
[345398130,1734234639422,-500.0,0.00027397,7]
[345398132,1734234639432,-500.0,0.00027397,7]
[345398134,1734234639441,-500.0,0.00027397,7]
[345398136,1734234639453,-500.0,0.00027397,7]
[345398138,1734234639462,-500.0,0.00027397,7]
[345398140,1734234639472,-500.0,0.00027397,7]
[345398142,1734234639482,-500.0,0.00027397,7]
[345398144,1734234639492,-500.0,0.00027397,7]
[345398146,1734234639501,-500.0,0.00027397,7]
[345398148,1734234639511,-500.0,0.00027397,7]
[345398150,1734234639520,-500.0,0.00027397,7]
[345398152,1734234639531,-500.0,0.00027397,7]
[345398154,1734234639540,-500.0,0.00027397,7]
[345398156,1734234639552,-500.0,0.00027397,7]
[345398158,1734234639564,-500.0,0.00027397,7]
[345398160,1734234639574,-502.76262038,0.00027397,7]
[345398162,1734234639583,-500.0,0.00027397,7]
[345398164,1734234639593,-500.0,0.00027397,7]
[345398166,1734234639603,-500.0,0.00027397,7]
[345398168,1734234639613,-500.0,0.00027397,7]
[345398171,1734234639623,-500.0,0.00027397,7]
[345398173,1734234639632,-500.0,0.00027397,7]
[345398175,1734234639642,-500.0,0.00027397,7]
[345398177,1734234639653,-500.0,0.00027397,7]
[345398179,1734234639663,-500.0,0.00027397,7]
[345398181,1734234639673,-500.0,0.00027397,7]
[345398183,1734234639682,-505.27054372,0.00027397,7]
[345398185,1734234639692,-500.0,0.00027397,7]
[345398187,1734234639702,-500.0,0.00027397,7]
[345398189,1734234639712,-500.0,0.00027397,7]
[345398191,1734234639722,-500.0,0.00027397,7]
[345398193,1734234639732,-500.0,0.00027397,7]
[345398195,1734234639742,-500.0,0.00027397,7]
[345398197,1734234639752,-500.0,0.00027397,7]
[345398199,1734234639761,-542.85138125,0.00027397,7]
[345398201,1734234639771,-500.0,0.00027397,7]
[345398203,1734234639783,-504.87462124,0.00027397,7]
[345398205,1734234639793,-500.0,0.00027397,7]
[345398207,1734234639803,-500.0,0.00027397,7]
[345398209,1734234639813,-987.47,0.00027397,7]
[345398211,1734234639822,-500.0,0.00027397,7]
[345398213,1734234639833,-500.0,0.00027397,7]
[345398215,1734234639843,-500.0,0.00027397,7]
[345398217,1734234639853,-500.0,0.00027397,7]
[345398219,1734234639862,-500.0,0.00027397,7]
[345398221,1734234639872,-500.0,0.00027397,7]
[345398223,1734234639883,-519.81,0.00027397,7]
[345398225,1734234639892,-500.0,0.00027397,7]
[345398228,1734234639903,-500.0,0.00027397,7]
[345398230,1734234639914,-500.0,0.00027397,7]
[345398232,1734234639924,-504.51867484,0.00027397,7]
[345398234,1734234639934,-500.0,0.00027397,7]
[345398236,1734234639945,-592.20069181,0.00027397,7]
[345398238,1734234639955,-500.10891145,0.00027397,7]
[345398240,1734234639966,-192.95738056,0.00027397,7]
[345398242,1734234639976,-500.0,0.00027397,7]
[345398244,1734234639985,-500.0,0.00027397,7]
[345398246,1734234639997,-453.32,0.00027397,7]
[345398248,1734234640007,-500.0,0.00027397,7]
[345398250,1734234640017,-500.0,0.00027397,7]
[345398252,1734234640028,-500.0,0.00027397,7]
[345398254,1734234640037,-500.0,0.00027397,7]
[345398256,1734234640047,-507.94370355,0.00027397,7]
[345398258,1734234640057,-500.0,0.00027397,7]
[345398260,1734234640066,-507.30660944,0.00027397,7]
[345398262,1734234640075,-500.0,0.00027397,7]
[345398264,1734234640085,-500.0,0.00027397,7]
[345398285,1734234640095,-500.0,0.00027397,7]
[345398287,1734234640271,-500.0,0.00027397,7]
[345398289,1734234640281,-500.0,0.00027397,7]
[345398291,1734234640292,-723.58,0.00027397,7]
[345398294,1734234640302,-500.0,0.00027397,7]
[345398296,1734234640312,-356.1,0.00027397,7]
[345398298,1734234640322,-500.0,0.00027397,7]
[345398300,1734234640332,-500.0,0.00027397,7]
[345398302,1734234640341,-500.0,0.00027397,7]
[345398304,1734234640351,-539.95767753,0.00027397,7]
[345398306,1734234640360,-500.0,0.00027397,7]
[345398308,1734234640370,-500.0,0.00027397,7]
[345398310,1734234640380,-500.0,0.00027397,7]
[345398312,1734234640389,-626.77811185,0.00027397,7]
[345398314,1734234640399,-500.0,0.00027397,7]
[345398316,1734234640408,-500.0,0.00027397,7]
[345398318,1734234640418,-500.0,0.00027397,7]
[345398320,1734234640427,-500.0,0.00027397,7]
[345398322,1734234640437,-500.0,0.00027397,7]
[345398324,1734234640446,-500.0,0.00027397,7]
[345398326,1734234640457,-500.0,0.00027397,7]
[345398328,1734234640467,-500.0,0.00027397,7]
[345398330,1734234640476,-500.0,0.00027397,7]
[345398332,1734234640486,-604.8,0.00027397,7]
[345398334,1734234640495,-611.39919737,0.00027397,7]
[345398336,1734234640504,-500.0,0.00027397,7]
[345398338,1734234640514,-505.03743176,0.00027397,7]
[345398340,1734234640524,-500.0,0.00027397,7]
[345398342,1734234640534,-500.0,0.00027397,7]
[345398344,1734234640543,-316.22,0.00027397,7]
[345398346,1734234640553,-500.0,0.00027397,7]
[345398348,1734234640564,-500.0,0.00027397,7]
[345398350,1734234640573,-500.0,0.00027397,7]
[345398352,1734234640583,-500.0,0.00027397,7]
[345398354,1734234640593,-500.0,0.00027397,7]
[345398356,1734234640603,-500.0,0.00027397,7]
[345398359,1734234640617,-500.0,0.00027397,7]
[345398361,1734234640627,-456.96,0.00027397,7]
[345398363,1734234640636,-466.0,0.00027616,2]
[345398365,1734234640645,-500.0,0.00027669,7]
[345398367,1734234640655,-500.0,0.00027671,7]
[345398369,1734234640665,-500.0,0.00027671,7]
[345398371,1734234640675,-500.0,0.00027671,7]
[345398373,1734234640686,-500.0,0.00027671,7]
[345398375,1734234640697,-500.0,0.00027671,7]
[345398377,1734234640709,-500.0,0.00027671,7]
[345398379,1734234640721,-501.92723985,0.00027671,7]
[345398381,1734234640732,-500.0,0.00027671,7]
[345398383,1734234640743,-500.0,0.00027671,7]
[345398385,1734234640754,-500.0,0.00027671,7]
[345398387,1734234640765,-500.0,0.00027671,7]
[345398389,1734234640776,-500.0,0.00027671,7]
[345398391,1734234640787,-500.0,0.00027671,7]
[345398393,1734234640798,-500.0,0.00027671,7]
[345398395,1734234640814,-500.0,0.00027671,7]
[345398397,1734234640826,-500.0,0.00027671,7]
[345398399,1734234640837,-500.0,0.00027671,7]
[345398401,1734234640848,-500.0,0.00027671,7]
[345398403,1734234640858,-500.0,0.00027671,7]
[345398405,1734234640869,-987.47,0.00027671,7]
[345398406,1734234640879,-569.96360015,0.00027671,7]
[345398408,1734234640888,-500.0,0.00027671,7]
[345398410,1734234640898,-310.91,0.00027671,7]
[345398412,1734234640909,-500.0,0.00027671,7]
[345398414,1734234640919,-500.0,0.00027671,7]
[345398416,1734234640929,-500.0,0.00027671,7]
[345398417,1734234640939,-500.0,0.00027671,7]
[345398418,1734234640949,-500.0,0.00027671,7]
[345398419,1734234640959,-500.0,0.00027671,7]
[345398420,1734234640968,-723.58,0.00027671,7]
[345398422,1734234640978,-500.0,0.00027671,7]
[345398424,1734234640987,-500.0,0.00027671,7]
[345398426,1734234640997,-500.0,0.00027671,7]
[345398428,1734234641008,-500.0,0.00027671,7]
[345398430,1734234641017,-500.0,0.00027671,7]
[345398432,1734234641027,-604.8,0.00027671,7]
[345398434,1734234641037,-500.0,0.00027671,7]
[345398436,1734234641047,-500.0,0.00027671,7]
[345398438,1734234641062,-188.9265005,0.00027884,2]
[345398440,1734234641072,-500.0,0.00027945,7]
[345398442,1734234641082,-500.0,0.00027945,7]
[345398444,1734234641092,-500.0,0.00027945,7]
[345398445,1734234641101,-500.0,0.00027945,7]
[345398447,1734234641110,-500.0,0.00027945,7]
[345398449,1734234641120,-500.0,0.00027945,7]
[345398451,1734234641129,-202.56929211,0.00027945,7]
[345398453,1734234641139,-500.0,0.00027945,7]
[345398455,1734234641149,-987.47,0.00027945,7]
[345398457,1734234641158,-500.0,0.00027945,7]
[345398459,1734234641168,-500.0,0.00027945,7]
[345398461,1734234641177,-723.58,0.00027945,7]
[345398463,1734234641188,-500.0,0.00027945,7]
[345398465,1734234641197,-604.8,0.00027945,7]
[345398467,1734234641206,-500.0,0.00027945,7]
[345398469,1734234641217,-420.0,0.00028137,2]
[345398471,1734234641226,-152.372,0.00028167,2]
[345398472,1734234641235,-531.892,0.00028167,2]
[345398473,1734234641245,-745.005,0.00028167,2]
[345398474,1734234641255,-500.0,0.00028219,7]
[345398475,1734234641266,-500.0,0.00028219,7]
[345398476,1734234641275,-500.0,0.00028219,7]
[345398477,1734234641285,-500.0,0.00028219,7]
[345398478,1734234641297,-500.0,0.00028219,7]
[345398479,1734234641311,-987.47,0.00028219,7]
[345398480,1734234641320,-500.0,0.00028219,7]
[345398481,1734234641329,-500.0,0.00028219,7]
[345398482,1734234641339,-723.58,0.00028219,7]
[345398483,1734234641349,-500.0,0.00028219,7]
[345398484,1734234641359,-604.8,0.00028219,7]
[345398485,1734234641368,-259.94,0.00028219,7]
[345398486,1734234641378,-156.63,0.000284,31]
[345398487,1734234641387,-156.63,0.000284,31]
[345398488,1734234641397,-752.50939071,0.000284,2]
[345398489,1734234641407,-5585.75074729,0.000284,3]
[345398490,1734234641416,-500.0,0.00028473,5]
[345398491,1734234641426,-500.0,0.00028473,5]
[345398492,1734234641435,-503.83520229,0.00028473,5]
[345398493,1734234641445,-500.0,0.00028473,5]
[345398494,1734234641455,-500.0,0.00028493,7]
[345398495,1734234641465,-500.0,0.00028493,7]
[345398496,1734234641474,-500.0,0.00028493,7]
[345398497,1734234641483,-500.0,0.00028493,7]
[345398498,1734234641494,-987.47,0.00028493,7]
[345398499,1734234641503,-500.0,0.00028493,7]
[345398500,1734234641514,-500.0,0.00028493,7]
[345398501,1734234641523,-723.58,0.00028493,7]
[345398502,1734234641533,-500.0,0.00028493,7]
[345398503,1734234641543,-604.8,0.00028493,7]
[345398504,1734234641554,-500.0,0.00028499,2]
[345398505,1734234641563,-233.07966858,0.00028499,2]
[345398506,1734234641573,-500.0,0.00028499,2]
[345398507,1734234641582,-500.0,0.00028499,2]
[345398508,1734234641592,-455.71365522,0.00028499,2]
[345398509,1734234641601,-500.0,0.00028499,2]
[345398510,1734234641611,-177.34957181,0.00028499,2]
[345398511,1734234641620,-163.48481814,0.00028499,2]
[345398512,1734234641629,-150.1,0.00028499,2]
[345398513,1734234641638,-166.90893,0.00028499,7]
[345398514,1734234641648,-100419.67890696,0.000285,2]
[345398515,1734234641657,-2014.74712422,0.000285,2]
[345398516,1734234641667,-611011.8315155,0.000285,2]
[345398517,1734234641677,-14018.48,0.000285,2]
[345398518,1734234641687,-69850.66175855,0.000285,2]
[345398519,1734234641697,-582.19,0.000285,2]
[345398520,1734234641706,-151.0,0.000285,17]
[345398521,1734234641716,-131028.4859686,0.000285,2]
[345398522,1734234641725,-208078.85659765,0.000285,2]
[345398523,1734234641741,-312.2633,0.000285,2]
[345398543,1734234643688,-1033.97384203,0.00027669,2]
[345398544,1734234643698,-10000.0,0.0002845,6]
[345398545,1734234643709,-525.98549917,0.000285,2]
[345398546,1734234643721,-20886.94472007,0.000285,2]
[345398547,1734234643733,-348.89256572,0.000285,2]
[345398838,1734235838820,-181.0,0.00027,2]
[345398840,1734235838830,-351.417,0.0002707,2]
[345398842,1734235838840,-220.174752,0.00027129,2]
[345398844,1734235838850,-300.0,0.00027396,2]
[345398846,1734235838863,-500.0,0.00027397,7]
[345398848,1734235838874,-500.0,0.00027397,7]
[345398851,1734235838883,-500.0,0.00027397,7]
[345398853,1734235838893,-500.0,0.00027397,7]
[345398855,1734235838902,-500.0,0.00027397,7]
[345398857,1734235838912,-500.0,0.00027397,7]
[345398859,1734235838921,-399.66296277,0.00027397,7]
[345398861,1734235838931,-500.0,0.00027397,7]
[345398863,1734235838941,-500.0,0.00027397,7]
[345398865,1734235838951,-500.0,0.00027397,7]
[345398867,1734235838960,-500.0,0.00027397,7]
[345398869,1734235838969,-500.0,0.00027397,7]
[345398871,1734235838979,-775.48038154,0.0002757,2]
[345398873,1734235838988,-500.0,0.00027668,7]
[345398875,1734235838998,-500.0,0.00027668,7]
[345398877,1734235839007,-500.0,0.00027668,7]
[345398879,1734235839017,-500.0,0.00027668,7]
[345398881,1734235839026,-1062.31,0.00027668,7]
[345398883,1734235839036,-500.0,0.00027669,7]
[345398885,1734235839045,-500.0,0.00027669,7]
[345398887,1734235839055,-500.0,0.00027669,7]
[345398889,1734235839064,-500.0,0.00027669,7]
[345398891,1734235839074,-518.44160791,0.00027669,7]
[345398893,1734235839084,-500.0,0.00027669,7]
[345398895,1734235839094,-500.0,0.00027669,7]
[345398897,1734235839104,-322.59,0.00027669,7]
[345398899,1734235839115,-500.0,0.00027669,7]
[345398901,1734235839124,-719.78,0.00027669,7]
[345398902,1734235839133,-426.38895383,0.00027669,7]
[345398903,1734235839143,-584.39,0.00027669,7]
[345398904,1734235839153,-500.0,0.00027669,7]
[345398905,1734235839163,-500.0,0.00027669,7]
[345398906,1734235839172,-507.8200722,0.00027669,7]
[345398907,1734235839182,-500.0,0.00027669,7]
[345398908,1734235839191,-500.0,0.0002767,7]
[345398909,1734235839201,-500.0,0.0002767,7]
[345398910,1734235839210,-500.0,0.0002767,7]
[345398911,1734235839220,-500.0,0.0002767,7]
[345398912,1734235839232,-500.0,0.0002767,7]
[345398913,1734235839242,-500.0,0.0002767,7]
[345398914,1734235839252,-500.0,0.0002767,7]
[345398915,1734235839261,-500.0,0.0002767,7]
[345398916,1734235839271,-500.0,0.0002767,7]
[345398917,1734235839281,-500.0,0.0002767,7]
[345398918,1734235839291,-500.0,0.0002767,7]
[345398919,1734235839302,-500.0,0.0002767,7]
[345398920,1734235839312,-500.0,0.0002767,7]
[345398921,1734235839322,-500.0,0.0002767,7]
[345398922,1734235839331,-500.0,0.0002767,7]
[345398923,1734235839340,-500.0,0.0002767,7]
[345398924,1734235839350,-500.0,0.0002767,7]
[345398925,1734235839362,-500.0,0.0002767,7]
[345398926,1734235839372,-500.0,0.0002767,7]
[345398927,1734235839382,-202.56929211,0.0002767,7]
[345398928,1734235839391,-500.0,0.0002767,7]
[345398929,1734235839401,-500.0,0.0002767,7]
[345398930,1734235839411,-500.0,0.0002767,7]
[345398931,1734235839420,-500.0,0.0002767,7]
[345398932,1734235839431,-500.0,0.0002767,7]
[345398933,1734235839440,-501.19911521,0.0002767,7]
[345398934,1734235839451,-500.0,0.0002767,7]
[345398935,1734235839462,-500.0,0.0002767,7]
[345398936,1734235839471,-500.0,0.0002767,7]
[345398937,1734235839481,-500.0,0.0002767,7]
[345398938,1734235839491,-500.0,0.0002767,7]
[345398939,1734235839501,-500.0,0.0002767,7]
[345398940,1734235839511,-500.0,0.0002767,7]
[345398941,1734235839520,-500.0,0.0002767,7]
[345398942,1734235839530,-500.0,0.0002767,7]
[345398943,1734235839540,-500.0,0.0002767,7]
[345398944,1734235839550,-501.26300568,0.0002767,7]
[345398945,1734235839559,-500.0,0.0002767,7]
[345398946,1734235839569,-500.0,0.0002767,7]
[345398947,1734235839579,-513.96095357,0.0002767,7]
[345398948,1734235839588,-869.91,0.0002767,7]
[345398949,1734235839598,-500.0,0.0002767,7]
[345398950,1734235839609,-500.0,0.0002767,7]
[345398951,1734235839619,-500.0,0.0002767,7]
[345398952,1734235839629,-500.0,0.0002767,7]
[345398953,1734235839639,-500.0,0.0002767,7]
[345398954,1734235839648,-500.0,0.0002767,7]
[345398955,1734235839657,-500.0,0.0002767,7]
[345398956,1734235839667,-500.0,0.0002767,7]
[345398957,1734235839677,-500.0,0.0002767,7]
[345398958,1734235839687,-500.0,0.0002767,7]
[345398959,1734235839696,-500.0,0.0002767,7]
[345398960,1734235839705,-500.0,0.0002767,7]
[345398961,1734235839716,-500.0,0.0002767,7]
[345398962,1734235839727,-184.30119186,0.0002767,7]
[345398963,1734235839737,-500.0,0.0002767,7]
[345398964,1734235839747,-500.0,0.0002767,7]
[345398965,1734235839757,-500.0,0.0002767,7]
[345398966,1734235839767,-500.0,0.0002767,7]
[345398967,1734235839777,-500.0,0.0002767,7]
[345398968,1734235839787,-500.0,0.0002767,7]
[345398969,1734235839797,-500.0,0.0002767,7]
[345398970,1734235839807,-500.0,0.0002767,7]
[345398971,1734235839816,-500.0,0.0002767,7]
[345398972,1734235839826,-500.0,0.0002767,7]
[345398973,1734235839837,-500.0,0.0002767,7]
[345398974,1734235839847,-500.0,0.0002767,7]
[345398975,1734235839859,-500.0,0.0002767,7]
[345398976,1734235839868,-500.0,0.0002767,7]
[345398977,1734235839878,-502.35826449,0.0002767,7]
[345398978,1734235839888,-500.0,0.0002767,7]
[345398979,1734235839898,-500.0,0.0002767,7]
[345398980,1734235839908,-500.0,0.0002767,7]
[345398981,1734235839918,-500.0,0.00027671,7]
[345398982,1734235839928,-775.48038152,0.00027912,2]
[345398983,1734235839938,-1062.31,0.00027942,7]
[345398984,1734235839948,-500.0,0.00027943,7]
[345398985,1734235839957,-719.78,0.00027943,7]
[345398986,1734235839968,-584.39,0.00027943,7]
[345398987,1734235839978,-500.0,0.00027943,7]
[345398988,1734235839987,-500.0,0.00027944,7]
[345398989,1734235839998,-500.0,0.00027944,7]
[345398990,1734235840007,-500.0,0.00027944,7]
[345398991,1734235840017,-500.0,0.00027944,7]
[345398992,1734235840027,-500.0,0.00027944,7]
[345398993,1734235840037,-500.0,0.00027944,7]
[345398994,1734235840046,-506.22695174,0.00027944,7]
[345398995,1734235840056,-869.91,0.00027944,7]
[345398996,1734235840066,-500.0,0.00027944,7]
[345398997,1734235840075,-500.0,0.00027944,7]
[345398998,1734235840085,-500.0,0.00027944,7]
[345398999,1734235840095,-506.57882795,0.00027944,7]
[345399000,1734235840106,-500.0,0.00027944,7]
[345399002,1734235840115,-398.82,0.00027944,7]
[345399004,1734235840125,-259.94,0.00027944,7]
[345399005,1734235840135,-503.12913656,0.00027944,7]
[345399006,1734235840145,-500.0,0.00027945,7]
[345399007,1734235840154,-152.372,0.00028167,2]
[345399008,1734235840164,-531.892,0.00028167,2]
[345399009,1734235840174,-745.005,0.00028167,2]
[345399010,1734235840184,-1062.31,0.00028216,7]
[345399011,1734235840194,-719.78,0.00028217,7]
[345399012,1734235840203,-584.39,0.00028217,7]
[345399013,1734235840213,-500.0,0.00028217,7]
[345399014,1734235840223,-500.0,0.00028218,7]
[345399016,1734235840236,-500.0,0.00028218,7]
[345399017,1734235840245,-500.0,0.00028218,7]
[345399019,1734235840254,-500.0,0.00028218,7]
[345399020,1734235840264,-869.91,0.00028218,7]
[345399021,1734235840275,-500.0,0.00028218,7]
[345399022,1734235840285,-591.52,0.00028218,7]
[345399024,1734235840295,-184.6798646,0.00028218,7]
[345399026,1734235840307,-500.0,0.00028219,7]
[345399028,1734235840318,-775.48038152,0.00028254,2]
[345399029,1734235840328,-153.1150543,0.00028356,30]
[345399030,1734235840338,-213.7607587,0.00028356,30]
[345399032,1734235840348,-154.6611829,0.00028356,30]
[345399034,1734235840357,-153.1150543,0.00028356,30]
[345399036,1734235840367,-153.0,0.00028356,30]
[345399037,1734235840377,-213.7607587,0.00028356,30]
[345399038,1734235840387,-210.5533228,0.00028356,30]
[345399039,1734235840396,-153.1150543,0.00028356,30]
[345399042,1734235840516,-153.1150543,0.00028356,30]
[345399044,1734235840526,-153.0,0.00028356,30]
[345399045,1734235840536,-153.1150543,0.00028356,30]
[345399046,1734235840546,-392.626354,0.00028356,30]
[345399047,1734235840555,-153.0,0.00028356,30]
[345399048,1734235840565,-153.0,0.00028356,30]
[345399049,1734235840575,-156.63,0.000284,31]
[345399050,1734235840584,-156.63,0.000284,31]
[345399051,1734235840595,-752.50939071,0.000284,2]
[345399052,1734235840605,-1062.31,0.0002849,7]
[345399053,1734235840615,-719.78,0.00028491,7]
[345399054,1734235840625,-584.39,0.00028491,7]
[345399055,1734235840635,-500.0,0.00028491,7]
[345399056,1734235840645,-500.0,0.00028492,7]
[345399057,1734235840655,-500.0,0.00028492,7]
[345399058,1734235840665,-500.0,0.00028492,7]
[345399059,1734235840675,-500.0,0.00028492,7]
[345399060,1734235840685,-869.91,0.00028492,7]
[345399061,1734235840694,-500.0,0.00028492,7]
[345399062,1734235840704,-500.0,0.00028493,7]
[345399063,1734235840714,-152.005375,0.00028499,2]
[345399064,1734235840724,-163.48481814,0.00028499,2]
[345399065,1734235840734,-177.34957181,0.00028499,2]
[345399066,1734235840743,-455.71365522,0.00028499,2]
[345399067,1734235840753,-500.0,0.00028499,2]
[345399068,1734235840763,-500.0,0.00028499,2]
[345399069,1734235840773,-233.07966858,0.00028499,2]
[345399070,1734235840783,-500.0,0.00028499,2]
[345399071,1734235840792,-500.0,0.00028499,2]
[345399072,1734235840802,-500.0,0.00028499,7]
[345399073,1734235840813,-100419.67890696,0.000285,2]
[345399074,1734235840823,-2014.74712422,0.000285,2]
[345399075,1734235840834,-1052516.22406034,0.000285,2]
[345399095,1734235843587,-500.0,0.0002767,7]
[345399096,1734235843597,-35995.37568759,0.000285,2]
[345399097,1734235843641,-1372.80458223,0.000285,2]
[345399196,1734237032786,-500.0,0.00026574,2]
[345399198,1734237032796,-500.0,0.00026849,2]
[345399200,1734237032806,-336.81,0.0002707,2]
[345399201,1734237032816,-576.74496835,0.00027668,7]
[345399294,1734237035699,-17.25405236,0.00027668,7]